bitfinex-derivatives/quotes_BTCF0:USTF0_20241003
["timestamp","ask_amount","ask_price","bid_price","bid_amount"]
[1727943578037,0.44,60398.0,60383.0,0.3608]
[1727943578234,0.44,60390.0,60388.0,0.01657]
[1727943578436,0.06624,60389.0,60388.0,0.01657]
[1727943579241,1.02704,60389.0,60388.0,0.01457]
[1727943579538,1.02704,60389.0,60359.0,0.09882932]
[1727943579539,0.06625,60380.0,60375.0,0.01457]
[1727943579743,0.06625,60380.0,60364.0,0.3608]
[1727943579744,0.06626,60371.0,60364.0,0.3608]
[1727943579941,0.44,60368.0,60364.0,0.3608]
[1727943580340,0.44,60368.0,60363.0,0.01457]
[1727943580341,0.867063,60368.0,60363.0,0.01457]
[1727943580539,0.8008,60368.0,60363.0,0.01457]
[1727943581145,0.44,60374.0,60363.0,0.01457]
[1727943581346,0.001,60368.0,60363.0,0.01457]
[1727943582442,0.001,60368.0,60367.0,0.066264]
[1727943582647,0.001,60368.0,60367.0,1.09297158]
[1727943582862,0.44,60384.0,60367.0,1.45776]
[1727943583055,0.44,60384.0,60371.0,0.066259]
[1727943583258,0.44,60384.0,60373.0,0.06563497]
[1727943583451,0.44,60384.0,60376.0,0.01457]
[1727943583853,0.00248555,60385.0,60377.0,0.06563497]
[1727943584064,0.44,60384.0,60377.0,0.06563497]
[1727943584268,0.44,60384.0,60379.0,0.06563497]
[1727943584654,0.001,60382.0,60379.0,0.06563497]
[1727943584858,0.001,60382.0,60380.0,0.06563497]
[1727943585053,0.00248555,60385.0,60380.0,0.06625]
[1727943585255,0.001,60384.0,60380.0,0.06563497]
[1727943585460,0.001,60384.0,60381.0,0.06563497]
[1727943585865,0.001,60384.0,60382.0,0.066247]
[1727943586373,0.001,60384.0,60382.0,0.13188197]
[1727943586870,0.001,60384.0,60382.0,0.06563497]
[1727943587057,0.507246,60384.0,60378.0,0.06563497]
[1727943587263,0.44,60379.0,60376.0,0.08020497]
[1727943587460,0.44,60379.0,60376.0,0.01457]
[1727943587771,0.44,60384.0,60376.0,0.01457]
[1727943587965,0.442,60384.0,60377.0,0.06563497]
[1727943588366,0.44,60384.0,60379.0,0.066251]
[1727943588567,0.00248555,60385.0,60377.0,0.06563497]
[1727943588763,0.00248555,60385.0,60382.0,0.066248]
[1727943588968,0.00248555,60385.0,60383.0,0.066247]
[1727943589269,0.00248555,60385.0,60379.0,0.13188597]
[1727943589463,0.00248555,60385.0,60384.0,0.3608]
[1727943589670,0.00248555,60385.0,60383.0,0.066246]
[1727943589876,0.066238,60391.0,60384.0,0.06578718]
[1727943590168,0.506243,60387.0,60385.0,0.06578718]
[1727943590374,0.44,60390.0,60383.0,0.06578718]
[1727943590565,0.44,60390.0,60384.0,0.06578718]
[1727943590763,0.002,60385.0,60383.0,0.06578718]
[1727943591070,0.002,60385.0,60383.0,0.066247]
[1727943591368,0.0038,60401.0,60396.0,0.066232]
[1727943591667,0.0045,60409.0,60393.0,0.01457]
[1727943591668,0.867017,60410.0,60399.0,0.066229]
[1727943591871,0.868977,60410.0,60401.0,0.06582518]
[1727943592070,0.066218,60409.0,60402.0,0.06582518]
[1727943592264,0.80276,60410.0,60402.0,0.06582518]
[1727943592461,0.06622,60408.0,60402.0,0.06582518]
[1727943592675,0.06622,60408.0,60404.0,0.06582518]
[1727943593373,0.80276,60410.0,60404.0,0.06582518]
[1727943593671,0.428977,60410.0,60405.0,0.06582518]
[1727943593870,0.066217,60410.0,60405.0,0.42662518]
[1727943594068,0.066217,60410.0,60405.0,0.06582484]
[1727943594269,0.066219,60408.0,60404.0,0.13207724]
[1727943594474,0.0074847,60406.0,60404.0,0.06585424]
[1727943594974,0.0024847,60406.0,60404.0,0.06585424]
[1727943595176,0.0074847,60406.0,60405.0,0.001]
[1727943595380,0.005,60406.0,60405.0,0.563862]
[1727943595674,0.005,60406.0,60405.0,0.13307624]
[1727943596085,0.005,60406.0,60405.0,0.13307715]
[1727943596265,0.00248397,60422.0,60406.0,0.00957]
[1727943596467,0.06868897,60422.0,60408.0,0.06585515]
[1727943596663,0.00248397,60422.0,60409.0,0.06585515]
[1727943596871,0.00248397,60422.0,60417.0,0.066208]
[1727943597072,0.00248397,60422.0,60411.0,0.06585515]
[1727943597373,0.0038,60433.0,60422.0,0.00957]
[1727943597576,0.42699,60436.0,60423.0,0.066202]
[1727943597765,0.42699,60436.0,60422.0,0.48097]
[1727943597766,0.3608,60436.0,60422.0,0.48097]
[1727943597965,0.3608,60436.0,60423.0,0.06585515]
[1727943598170,0.3608,60436.0,60434.0,0.44]
[1727943598372,0.0038,60452.0,60436.0,0.066188]
[1727943598574,0.3608,60453.0,60445.0,0.066178]
[1727943598777,0.3608,60453.0,60440.0,0.44]
[1727943598976,0.00248266,60459.0,60449.0,0.066174]
[1727943599370,0.00248266,60459.0,60447.0,0.3608]
[1727943599576,0.3876,60450.0,60442.0,0.37037]
[1727943599770,0.066175,60449.0,60442.0,0.37037]
[1727943600368,0.44,60455.0,60442.0,0.37037]
[1727943600673,0.08264666,60459.0,60447.0,0.001]
[1727943600880,0.01648266,60459.0,60447.0,0.001]
[1727943601069,0.44,60454.0,60442.0,0.37037]
[1727943601266,0.009,60449.0,60442.0,0.37137]
[1727943601776,0.01648266,60459.0,60447.0,0.067176]
[1727943602078,0.01648266,60459.0,60448.0,0.066175]
[1727943602785,0.08264666,60459.0,60448.0,0.066175]
[1727943603470,0.06864666,60459.0,60448.0,0.066175]
[1727943603666,0.008,60449.0,60448.0,0.066175]
[1727943604068,0.066165,60458.0,60448.0,0.562455]
[1727943604272,0.01648266,60459.0,60448.0,0.001]
[1727943604473,0.506174,60449.0,60448.0,0.001]
[1727943604678,0.506174,60449.0,60442.0,0.37037]
[1727943604679,0.44,60449.0,60442.0,0.37037]
[1727943604888,0.06618,60444.0,60442.0,0.37037]
[1727943605785,0.44,60443.0,60442.0,0.00457]
[1727943607291,0.066195,60430.0,60427.0,0.00248139]
[1727943607586,0.066196,60429.0,60427.0,0.00248139]
[1727943608486,0.3608,60428.0,60427.0,0.00848139]
[1727943608980,1.45728,60428.0,60427.0,0.006]
[1727943609183,1.45728,60428.0,60410.0,0.01656]
[1727943609391,0.066215,60412.0,60410.0,0.01656]
[1727943609979,0.3608,60411.0,60410.0,0.01656]
[1727943610784,0.3608,60411.0,60410.0,0.01756]
[1727943611382,0.3608,60411.0,60410.0,0.01656]
[1727943611681,0.3638,60411.0,60410.0,0.01656]
[1727943613089,0.3718,60411.0,60410.0,0.01656]
[1727943613492,1.4684,60411.0,60387.0,0.3608]
[1727943613680,0.506234,60395.0,60387.0,0.3608]
[1727943614183,0.066234,60395.0,60387.0,0.3608]
[1727943614888,0.066234,60395.0,60390.0,0.01657]
[1727943615078,0.066234,60395.0,60368.0,0.04896454]
[1727943615079,0.44,60391.0,60368.0,0.04896454]
[1727943615286,0.066255,60376.0,60361.0,0.3608]
[1727943615784,0.049685,60376.0,60361.0,0.3608]
[1727943616577,0.0796953,60376.0,60366.0,0.01658]
[1727943617081,0.049685,60376.0,60366.0,0.01658]
[1727943617489,0.055685,60376.0,60366.0,0.01658]
[1727943617691,0.006,60376.0,60366.0,0.01658]
[1727943617985,0.006,60376.0,60367.0,0.066264]
[1727943618485,0.006,60376.0,60368.0,0.066262]
[1727943618694,0.006,60376.0,60366.0,0.44084]
[1727943618984,0.03352094,60388.0,60378.0,0.01058]
[1727943618985,0.0038,60388.0,60378.0,0.01058]
[1727943619295,0.36328535,60394.0,60383.0,0.066246]
[1727943619696,1e-08,60394.0,60391.0,0.506237]
[1727943619880,0.3608,60402.0,60396.0,0.01057999]
[1727943620789,0.44,60400.0,60396.0,0.01057999]
[1727943621585,0.3608,60402.0,60396.0,0.01057999]
[1727943621984,0.3608,60402.0,60397.0,0.066231]
[1727943622187,0.36708433,60417.0,60398.0,1.5]
[1727943622390,0.42949433,60417.0,60403.0,0.066224]
[1727943622782,0.36328433,60417.0,60403.0,0.44]
[1727943622983,0.36328433,60417.0,60399.0,0.0314]
[1727943623193,0.36328433,60417.0,60410.0,0.066217]
[1727943623584,0.36328433,60417.0,60406.0,0.44]
[1727943623585,0.36328433,60417.0,60411.0,0.066216]
[1727943623790,0.00248433,60417.0,60411.0,0.427016]
[1727943624184,0.00348433,60417.0,60411.0,0.427016]
[1727943624385,0.00348433,60417.0,60411.0,0.3608]
[1727943624693,0.066219,60409.0,60402.0,0.3608]
[1727943624897,0.44,60413.0,60402.0,0.3608]
[1727943624898,0.06622,60408.0,60402.0,0.3608]
[1727943625191,0.00748433,60417.0,60402.0,0.3608]
[1727943625697,0.00748433,60417.0,60404.0,0.066223]
[1727943625898,0.00748433,60417.0,60398.0,0.00084]
[1727943625899,0.066228,60400.0,60398.0,0.00084]
[1727943626193,0.06623,60398.0,60383.0,0.00248377]
[1727943627390,0.066245,60385.0,60383.0,0.00248377]
[1727943628290,0.066245,60385.0,60382.0,0.01657]
[1727943628291,0.066247,60383.0,60382.0,0.01657]
[1727943628493,0.506247,60383.0,60382.0,0.01657]
[1727943629297,0.3608,60384.0,60382.0,0.01657]
[1727943629696,0.427046,60384.0,60382.0,0.01657]
[1727943629999,0.454,60383.0,60382.0,0.01508466]
[1727943630296,0.95084,60383.0,60382.0,0.01508466]
[1727943630596,1.53684,60383.0,60382.0,0.01508466]
[1727943631089,1.53684,60383.0,60364.0,0.3608]
[1727943631284,0.44,60375.0,60364.0,0.3608]
[1727943631489,0.066248,60382.0,60371.0,0.01658]
[1727943632086,0.014,60383.0,60373.0,0.44]
[1727943632394,0.014,60383.0,60371.0,0.01658]
[1727943632788,0.44,60379.0,60371.0,0.01658]
[1727943632997,0.506257,60374.0,60371.0,0.01658]
[1727943634102,0.066257,60374.0,60371.0,0.01658]
[1727943634497,0.442,60379.0,60371.0,0.01658]
[1727943634498,0.44,60379.0,60371.0,0.01658]
[1727943634804,0.002,60374.0,60371.0,0.01658]
[1727943636004,0.3608,60384.0,60372.0,1.5]
[1727943636208,0.002,60379.0,60372.0,1.5]
[1727943636709,0.002,60379.0,60371.0,0.01658]
[1727943636710,0.3608,60384.0,60371.0,0.01758]
[1727943637000,0.44,60373.0,60371.0,0.01758]
[1727943637196,0.506258,60373.0,60372.0,0.003]
[1727943637587,1.603178,60373.0,60372.0,0.003]
[1727943637794,1.603178,60373.0,60364.0,0.3608]
[1727943637795,0.49692,60372.0,60364.0,0.3608]
[1727943638097,0.066266,60366.0,60364.0,0.3608]
[1727943639393,0.066269,60363.0,60362.0,0.01658]
[1727943639593,0.066269,60363.0,60341.0,0.00084]
[1727943639594,0.066269,60363.0,60347.0,0.04896454]
[1727943639791,0.066291,60343.0,60339.0,0.04896454]
[1727943640103,0.066291,60343.0,60335.0,0.06585515]
[1727943640104,0.44,60343.0,60336.0,0.04896454]
[1727943640304,0.3608,60343.0,60333.0,0.3608]
[1727943640505,0.44,60337.0,60333.0,0.3608]
[1727943640698,0.0038,60352.0,60347.0,0.004]
[1727943640903,0.44248673,60357.0,60347.0,0.004]
[1727943641196,0.00248673,60357.0,60347.0,0.004]
[1727943641402,0.00248673,60357.0,60354.0,0.01658]
[1727943642197,0.00248673,60357.0,60354.0,0.51658]
[1727943642198,0.44,60355.0,60354.0,0.51658]
[1727943642600,1.53708,60355.0,60354.0,0.51658]
[1727943642903,1.53708,60355.0,60354.0,0.5]
[1727943643294,1.57148,60355.0,60354.0,0.3422]
[1727943643500,1.93228,60355.0,60354.0,0.2841]
[1727943643807,1.93628,60355.0,60354.0,0.2841]
[1727943644009,1.93628,60355.0,60354.0,0.196489]
[1727943645409,1.93628,60355.0,60340.0,0.01658]
[1727943645410,0.066293,60341.0,60340.0,0.01658]
[1727943645597,0.066294,60340.0,60333.0,0.34411929]
[1727943645909,0.44,60334.0,60333.0,0.34411929]
[1727943646215,0.44,60339.0,60333.0,0.34411929]
[1727943647093,0.44,60339.0,60333.0,0.34811929]
[1727943647502,0.001,60340.0,60333.0,0.34811929]
[1727943647503,0.44,60334.0,60333.0,0.34811929]
[1727943648402,0.44,60334.0,60333.0,0.34411929]
[1727943648603,0.44,60334.0,60333.0,0.34811929]
[1727943649003,0.44,60339.0,60333.0,0.34411929]
[1727943649207,0.001,60334.0,60333.0,0.34811929]
[1727943649602,0.44,60339.0,60333.0,0.34811929]
[1727943650307,0.441,60339.0,60333.0,0.34811929]
[1727943651417,0.44,60334.0,60333.0,0.34811929]
[1727943651606,0.001,60339.0,60333.0,0.34811929]
[1727943652115,0.44,60336.0,60333.0,0.34811929]
[1727943652507,0.44,60334.0,60333.0,0.34811929]
[1727943653107,1.53724,60334.0,60333.0,0.004]
[1727943653312,1.003541,60334.0,60333.0,0.006]
[1727943653614,1.603541,60334.0,60333.0,0.006]
[1727943653800,1.603541,60334.0,60332.0,0.01659]
[1727943654008,1.107301,60334.0,60333.0,0.006]
[1727943654500,0.066304,60331.0,60330.0,1.00092]
[1727943654699,0.427104,60331.0,60330.0,0.2992389]
[1727943654908,1.524384,60331.0,60330.0,0.2801389]
[1727943655213,1.524384,60331.0,60330.0,0.2264389]
[1727943655402,0.924384,60331.0,60330.0,0.1726389]
[1727943655598,1.524384,60331.0,60330.0,0.1726389]
[1727943655912,2.01831408,60331.0,60330.0,0.1726389]
[1727943656409,0.95383408,60331.0,60330.0,0.1726389]
[1727943656614,0.03245008,60331.0,60330.0,0.1726389]
[1727943656910,0.44,60338.0,60330.0,0.1726389]
[1727943657115,0.46939931,60338.0,60331.0,0.0344]
[1727943657619,0.02939931,60338.0,60331.0,0.0344]
[1727943657805,0.506294,60340.0,60331.0,0.0344]
[1727943658809,0.44,60340.0,60331.0,0.0344]
[1727943659211,0.004,60338.0,60333.0,0.066301]
[1727943659420,0.03008017,60344.0,60335.0,0.3608]
[1727943659618,0.3608,60350.0,60336.0,0.44]
[1727943659830,0.02963522,60350.0,60346.0,0.3608]
[1727943660119,0.36328697,60353.0,60344.0,0.066289]
[1727943660303,0.00248697,60353.0,60344.0,0.3608]
[1727943660509,0.03023681,60355.0,60351.0,0.3608]
[1727943660809,0.3646,60366.0,60351.0,0.3608]
[1727943660810,0.3608,60366.0,60351.0,0.3608]
[1727943661007,0.0305324,60366.0,60357.0,0.3608]
[1727943661212,0.00248603,60371.0,60357.0,0.3608]
[1727943661213,0.00248603,60371.0,60357.0,0.8008]
[1727943661509,0.3608,60374.0,60362.0,0.44]
[1727943661912,0.070047,60383.0,60368.0,0.3608]
[1727943662216,0.0958568,60383.0,60369.0,0.0331]
[1727943662606,0.0958568,60383.0,60369.0,0.099362]
[1727943662813,0.0296098,60383.0,60369.0,0.0331]
[1727943663007,0.3608,60388.0,60372.0,0.506258]
[1727943663207,0.011,60383.0,60378.0,0.44]
[1727943663405,0.3608,60388.0,60378.0,0.44]
[1727943663608,0.3608,60388.0,60371.0,0.01659]
[1727943663609,0.066255,60376.0,60371.0,0.01659]
[1727943663811,0.3608,60388.0,60371.0,0.01659]
[1727943663812,0.506258,60373.0,60371.0,0.01659]
[1727943664108,0.44,60373.0,60371.0,0.01659]
[1727943664310,0.3608,60372.0,60358.0,0.01659]
[1727943664525,0.066272,60360.0,60358.0,0.01659]
[1727943665112,0.3608,60359.0,60358.0,0.01659]
[1727943667123,0.3608,60379.0,60369.0,0.44]
[1727943667317,0.39000523,60379.0,60370.0,0.0664]
[1727943667620,0.427043,60387.0,60375.0,0.44]
[1727943667922,0.427043,60387.0,60373.0,0.01659]
[1727943667923,0.3608,60387.0,60373.0,0.01659]
[1727943668121,0.066245,60385.0,60373.0,0.01659]
[1727943668330,0.3608,60387.0,60374.0,1.94]
[1727943668512,0.3608,60387.0,60374.0,2.006256]
[1727943668923,0.066238,60391.0,60377.0,0.3608]
[1727943669309,0.44,60389.0,60377.0,0.3608]
[1727943669619,0.003,60379.0,60377.0,0.3608]
[1727943669827,0.49688,60378.0,60373.0,0.01659]
[1727943670014,0.506257,60374.0,60373.0,0.01659]
[1727943670417,1.003177,60374.0,60373.0,0.01659]
[1727943670915,0.3608,60381.0,60373.0,0.01659]
[1727943670916,0.066251,60379.0,60373.0,0.01659]
[1727943671221,0.3608,60381.0,60373.0,0.01659]
[1727943671419,0.002,60374.0,60373.0,0.01759]
[1727943671617,0.3608,60381.0,60376.0,0.066254]
[1727943671821,0.066238,60391.0,60377.0,0.032]
[1727943672016,0.44248495,60400.0,60383.0,0.3608]
[1727943672322,0.44248495,60400.0,60381.0,0.44]
[1727943672323,0.00128,60395.0,60381.0,0.44]
[1727943672539,0.00248495,60400.0,60375.0,0.36164]
[1727943672540,0.44,60382.0,60375.0,0.36164]
[1727943672826,0.44,60382.0,60373.0,0.01659]
[1727943672827,0.506248,60382.0,60373.0,0.01659]
[1727943673010,0.012,60374.0,60373.0,0.01759]
[1727943673420,0.44,60382.0,60373.0,0.01659]
[1727943673722,0.44,60382.0,60381.0,0.001]
[1727943674118,0.44,60382.0,60373.0,0.01759]
[1727943674119,0.008,60374.0,60373.0,0.01759]
[1727943675026,0.008,60374.0,60373.0,0.51451]
[1727943675217,0.3608,60386.0,60373.0,1.11451]
[1727943675526,0.3608,60386.0,60373.0,0.01759]
[1727943675727,0.3608,60386.0,60374.0,0.066256]
[1727943676114,0.3608,60386.0,60373.0,0.01759]
[1727943676425,0.008,60382.0,60373.0,0.01759]
[1727943676613,0.074248,60382.0,60373.0,0.01759]
[1727943676812,0.066248,60382.0,60374.0,0.001]
[1727943677515,0.3678,60386.0,60373.0,0.45759]
[1727943678027,0.427043,60386.0,60375.0,0.066255]
[1727943678230,0.008,60382.0,60378.0,0.506252]
[1727943678730,0.066234,60395.0,60382.0,0.066247]
[1727943678928,0.066234,60395.0,60383.0,0.0333]
[1727943679227,0.066234,60395.0,60386.0,0.01659]
[1727943679427,0.03049713,60398.0,60389.0,0.8008]
[1727943679618,0.00248495,60400.0,60394.0,0.8008]
[1727943680214,0.3608,60409.0,60399.0,0.44]
[1727943680421,0.3608,60409.0,60405.0,0.44]
[1727943680919,0.0038,60425.0,60405.0,0.44]
[1727943680920,0.066212,60415.0,60405.0,0.44]
[1727943681230,0.066205,60421.0,60410.0,0.506217]
[1727943681415,0.066206,60420.0,60410.0,0.506217]
[1727943681616,0.066206,60420.0,60411.0,0.066215]
[1727943681932,0.3608,60429.0,60420.0,0.01659]
[1727943681933,0.066203,60423.0,60420.0,0.01659]
[1727943682630,0.066196,60430.0,60421.0,0.44]
[1727943682831,0.36208,60438.0,60421.0,0.44]
[1727943683021,0.066205,60422.0,60420.0,0.01659]
[1727943683215,0.066205,60422.0,60420.0,0.01759]
[1727943683615,0.3608,60421.0,60420.0,0.01659]
[1727943684031,0.066205,60422.0,60420.0,0.01659]
[1727943684327,0.3608,60427.0,60420.0,0.01659]
[1727943684632,0.3608,60427.0,60420.0,0.01759]
[1727943684633,0.066204,60422.0,60420.0,0.01759]
[1727943684927,0.93652,60421.0,60420.0,0.00959]
[1727943685129,1.76132,60421.0,60396.0,0.06585515]
[1727943685321,0.44,60401.0,60396.0,0.06585515]
[1727943685633,0.506228,60401.0,60396.0,0.08242515]
[1727943686618,0.066231,60397.0,60396.0,0.08242515]
[1727943687221,0.066231,60397.0,60396.0,0.01657]
[1727943688125,0.066243,60387.0,60381.0,0.3608]
[1727943688345,0.44,60383.0,60381.0,0.3608]
[1727943688520,0.066238,60391.0,60381.0,0.3608]
[1727943688825,0.44,60395.0,60371.0,0.44]
[1727943689141,0.44,60395.0,60369.0,1.566261]
[1727943689142,0.44,60395.0,60379.0,0.3608]
[1727943689426,0.3608,60400.0,60382.0,0.45657]
[1727943689427,0.02913252,60397.0,60382.0,0.45657]
[1727943689639,0.3608,60400.0,60382.0,0.522817]
[1727943689830,0.3608,60400.0,60384.0,0.066245]
[1727943690125,0.83077589,60400.0,60382.0,0.01657]
[1727943690334,0.066233,60396.0,60382.0,0.01657]
[1727943690924,0.39205589,60400.0,60383.0,0.44]
[1727943691119,0.39205589,60400.0,60383.0,0.506246]
[1727943691120,0.39077589,60400.0,60383.0,0.506246]
[1727943691319,0.39077589,60400.0,60383.0,0.44]
[1727943691526,0.44,60388.0,60382.0,0.01657]
[1727943691929,0.066246,60384.0,60382.0,0.01657]
[1727943692329,0.066246,60384.0,60382.0,0.02357]
[1727943692632,0.0038,60403.0,60394.0,0.01657]
[1727943692832,0.066221,60407.0,60394.0,0.45657]
[1727943693036,0.44,60411.0,60394.0,0.01657]
[1727943693525,0.06622,60408.0,60394.0,0.45657]
[1727943693725,0.066221,60407.0,60394.0,0.45657]
[1727943693924,0.066221,60407.0,60394.0,0.45757]
[1727943694330,0.44,60410.0,60394.0,0.01757]
[1727943694531,0.04499571,60395.0,60394.0,0.01757]
[1727943695233,0.04499571,60395.0,60394.0,0.45757]
[1727943696032,0.04499571,60395.0,60394.0,0.01757]
[1727943698026,0.02926368,60410.0,60397.0,0.066231]
[1727943698227,0.06869763,60414.0,60404.0,0.44]
[1727943698228,0.00248463,60414.0,60404.0,0.44]
[1727943698736,0.00248463,60414.0,60394.0,0.08342515]
[1727943698936,0.066221,60407.0,60394.0,0.01757]
[1727943699152,0.00248463,60414.0,60394.0,0.01757]
[1727943699437,0.066222,60405.0,60404.0,0.001]
[1727943699933,0.066224,60404.0,60394.0,0.01657]
[1727943700135,0.066224,60404.0,60394.0,0.01757]
[1727943700641,0.44,60410.0,60394.0,0.01757]
[1727943700933,0.44,60399.0,60394.0,0.01757]
[1727943701141,0.066233,60396.0,60394.0,0.01757]
[1727943701641,0.066233,60396.0,60394.0,0.01657]
[1727943702037,0.066233,60396.0,60381.0,1.5024836]
[1727943702038,0.49672,60395.0,60381.0,0.0024836]
[1727943702236,0.066245,60385.0,60381.0,0.0024836]
[1727943703239,0.066239,60390.0,60381.0,0.0024836]
[1727943703436,0.066241,60389.0,60381.0,0.0024836]
[1727943703740,0.0038,60406.0,60388.0,0.8008]
[1727943703944,0.0045,60412.0,60408.0,0.01277]
[1727943704128,0.02940305,60422.0,60411.0,0.44]
[1727943704438,0.09560705,60422.0,60411.0,0.44]
[1727943704939,0.066204,60422.0,60411.0,0.44]
[1727943705530,0.066204,60422.0,60408.0,0.01277]
[1727943705531,0.066211,60416.0,60408.0,0.01277]
[1727943705732,0.066212,60415.0,60408.0,0.01277]
[1727943706038,0.3608,60423.0,60411.0,0.001]
[1727943706427,0.066214,60413.0,60408.0,0.01277]
[1727943708636,0.066218,60410.0,60408.0,0.01277]
[1727943710454,0.0334,60412.0,60408.0,0.01277]
[1727943711348,0.03032725,60413.0,60408.0,0.01377]
[1727943711644,0.066212,60415.0,60408.0,0.01377]
[1727943712042,0.464,60422.0,60408.0,0.45377]
[1727943712340,0.06869763,60414.0,60408.0,0.01277]
[1727943712530,0.066217,60410.0,60408.0,0.01377]
[1727943712935,0.066217,60410.0,60408.0,0.01277]
[1727943713239,0.00248463,60414.0,60408.0,0.01377]
[1727943714337,0.066217,60410.0,60408.0,0.01377]
[1727943716747,0.066217,60410.0,60388.0,0.3608]
[1727943716748,0.066231,60398.0,60388.0,0.3608]
[1727943716956,0.44,60402.0,60388.0,0.3608]
[1727943717142,0.01072759,60414.0,60390.0,0.01657]
[1727943717143,0.066238,60391.0,60390.0,0.01657]
[1727943717449,0.4744,60401.0,60390.0,0.01657]
[1727943717937,0.066236,60393.0,60390.0,0.01657]
[1727943718341,0.066229,60399.0,60390.0,0.01657]
[1727943718642,0.0344,60401.0,60390.0,0.01657]
[1727943718643,0.066231,60398.0,60390.0,0.01657]
[1727943718848,0.066236,60393.0,60390.0,0.01657]
[1727943719043,0.4744,60401.0,60390.0,0.01657]
[1727943719242,0.066236,60393.0,60390.0,0.01657]
[1727943719939,0.06623,60398.0,60390.0,0.01657]
[1727943720347,0.0344,60401.0,60390.0,0.01657]
[1727943721745,0.09533403,60402.0,60397.0,0.29]
[1727943721746,0.02910803,60402.0,60397.0,0.29]
[1727943722053,0.02910803,60402.0,60390.0,0.01657]
[1727943722054,0.066236,60393.0,60390.0,0.01657]
[1727943722242,0.066237,60392.0,60390.0,0.01657]
[1727943722438,0.066234,60395.0,60390.0,0.01657]
[1727943722846,0.066235,60394.0,60390.0,0.01657]
[1727943723052,0.066229,60399.0,60390.0,0.01657]
[1727943723247,0.066232,60396.0,60390.0,0.01657]
[1727943723550,0.29,60400.0,60390.0,0.01657]
[1727943723551,0.066235,60394.0,60390.0,0.01657]
[1727943723748,0.0324,60401.0,60391.0,0.29]
[1727943723949,0.3608,60403.0,60391.0,0.29]
[1727943724160,0.066224,60404.0,60392.0,0.3608]
[1727943725353,0.0326,60408.0,60392.0,0.3608]
[1727943725354,0.29,60407.0,60392.0,0.3608]
[1727943725544,0.0326,60408.0,60390.0,0.01657]
[1727943725545,0.066237,60392.0,60390.0,0.01657]
[1727943725749,0.3608,60393.0,60390.0,0.01657]
[1727943725947,0.066231,60398.0,60390.0,0.01657]
[1727943726148,0.066231,60398.0,60390.0,0.30657]
[1727943726344,0.3608,60400.0,60390.0,0.30657]
[1727943726750,0.066225,60403.0,60390.0,0.372809]
[1727943727058,0.066221,60407.0,60392.0,0.066237]
[1727943727255,0.3608,60408.0,60394.0,0.29]
[1727943727449,0.3608,60408.0,60390.0,0.01657]
[1727943727450,0.3608,60408.0,60404.0,0.29]
[1727943728044,0.066209,60418.0,60406.0,0.01657]
[1727943728244,0.066209,60418.0,60409.0,0.29]
[1727943728955,0.066209,60418.0,60407.0,0.10032]
[1727943728956,0.29,60419.0,60407.0,0.0341]
[1727943729144,0.29,60419.0,60406.0,0.01657]
[1727943729145,0.066218,60409.0,60406.0,0.01657]
[1727943730048,0.066214,60413.0,60406.0,0.01657]
[1727943730657,0.02946756,60421.0,60410.0,0.506217]
[1727943730958,0.066206,60420.0,60409.0,0.001]
[1727943731156,0.066217,60411.0,60409.0,0.001]
[1727943731453,0.506206,60420.0,60406.0,0.01657]
[1727943731650,0.06622,60408.0,60406.0,0.01757]
[1727943732048,0.06869863,60414.0,60406.0,0.01657]
[1727943732252,0.066214,60413.0,60409.0,0.001]
[1727943732754,0.00248463,60414.0,60406.0,0.01757]
[1727943733166,0.066215,60412.0,60406.0,0.01757]
[1727943733656,0.03280544,60414.0,60409.0,0.44]
[1727943733858,0.00248463,60414.0,60409.0,0.44]
[1727943734254,0.00248463,60414.0,60409.0,0.441]
[1727943734453,0.00248463,60414.0,60409.0,0.001]
[1727943734656,0.06869763,60414.0,60409.0,0.001]
[1727943734865,0.066214,60413.0,60409.0,0.001]
[1727943735356,0.00248463,60414.0,60409.0,0.001]
[1727943736955,0.00248463,60414.0,60412.0,0.066215]
[1727943737562,0.00248463,60414.0,60410.0,0.034]
[1727943738052,0.00248463,60414.0,60406.0,0.05067]
[1727943738053,0.066215,60412.0,60406.0,0.01657]
[1727943738253,0.00248463,60414.0,60406.0,0.01657]
[1727943738459,0.00248463,60414.0,60407.0,0.06622]
[1727943738856,0.00248463,60414.0,60408.0,0.44]
[1727943739059,0.00248463,60414.0,60413.0,0.066214]
[1727943739268,0.00248463,60414.0,60413.0,0.098414]
[1727943739563,0.02912522,60422.0,60417.0,0.066209]
[1727943739862,0.066197,60428.0,60422.0,0.066204]
[1727943740057,0.0336,60432.0,60422.0,0.066204]
[1727943740058,0.066199,60427.0,60422.0,0.066204]
[1727943740759,0.530271,60434.0,60422.0,0.066204]
[1727943740760,0.0662,60426.0,60422.0,0.066204]
[1727943740966,0.03003843,60433.0,60424.0,0.44]
[1727943741270,0.066194,60431.0,60424.0,0.506201]
[1727943741755,0.46548001,60434.0,60424.0,0.44]
[1727943741951,0.49327152,60434.0,60421.0,0.0321]
[1727943742152,0.066201,60425.0,60424.0,0.001]
[1727943742753,0.04290462,60425.0,60424.0,0.001]
[1727943743153,0.04290462,60425.0,60420.0,0.01508537]
[1727943743154,1.50018462,60425.0,60420.0,0.01508537]
[1727943743361,1.50018462,60425.0,60405.0,0.00248298]
[1727943743362,0.44,60421.0,60405.0,0.00248298]
[1727943743660,0.066219,60408.0,60405.0,0.00248298]